bitfinex-derivatives/quotes_BTCF0:USTF0_20251204
["timestamp","ask_amount","ask_price","bid_price","bid_amount"]
[1764829877995,0.2272014,93263.0,93262.0,0.18463]
[1764829878588,0.21648,93263.0,93262.0,0.18463]
[1764829878985,0.21648,93263.0,93262.0,0.19899076]
[1764829879995,0.12412,93263.0,93262.0,0.19899076]
[1764829880396,0.03,93263.0,93262.0,0.19899076]
[1764829880704,0.00016078,93272.0,93271.0,0.18463]
[1764829880895,0.03016078,93272.0,93271.0,0.1953505]
[1764829881899,0.00016078,93272.0,93271.0,0.1953505]
[1764829882096,0.00016078,93272.0,93271.0,0.1983505]
[1764829882692,0.00016078,93272.0,93271.0,0.1993505]
[1764829883501,0.00016078,93272.0,93271.0,0.2003505]
[1764829883704,0.00016078,93272.0,93271.0,0.2013505]
[1764829884203,0.0107187,93287.0,93285.0,0.0107189]
[1764829884509,0.03,93287.0,93286.0,0.1953488]
[1764829886297,0.12412,93287.0,93286.0,0.1963488]
[1764829886700,0.03,93287.0,93286.0,0.1963488]
[1764829886900,0.03,93287.0,93286.0,0.1973488]
[1764829888007,0.12412,93287.0,93286.0,0.1973488]
[1764829888408,0.03,93287.0,93286.0,0.1973488]
[1764829890003,0.12412,93287.0,93286.0,0.1973488]
[1764829890313,0.21648,93287.0,93286.0,0.002]
[1764829890809,0.21648,93287.0,93277.0,0.00016078]
[1764829890810,0.1971997,93278.0,93277.0,0.00016078]
[1764829891009,0.2271997,93278.0,93277.0,0.00016078]
[1764829892408,0.2271997,93278.0,93277.0,0.00116078]
[1764829893205,0.2271997,93278.0,93277.0,0.00216078]
[1764829896505,0.2271997,93278.0,93277.0,0.09158078]
[1764829898113,0.2271997,93278.0,93277.0,0.00216078]
[1764829898312,0.1865612,93265.0,93264.0,0.16572558]
[1764829898510,0.1865612,93265.0,93263.0,0.07630558]
[1764829898511,0.09345,93264.0,93263.0,0.07630558]
[1764829898708,0.09345,93264.0,93252.0,1.54471659]
[1764829898709,0.1865618,93260.0,93258.0,0.07630558]
[1764829898915,0.17584,93259.0,93258.0,0.16572558]
[1764829899114,0.20584,93259.0,93258.0,0.16572558]
[1764829899415,0.20584,93259.0,93258.0,0.07630558]
[1764829899909,0.20584,93259.0,93258.0,0.08881849]
[1764829900110,0.20584,93259.0,93258.0,0.01251291]
[1764829900314,0.20584,93259.0,93258.0,0.005]
[1764829900505,0.20584,93259.0,93258.0,0.17834]
[1764829900818,0.20584,93259.0,93258.0,0.10717963]
[1764829901009,0.20584,93259.0,93258.0,0.01975963]
[1764829908613,0.1742126,93253.0,93252.0,8.547e-05]
[1764829908818,0.2042126,93253.0,93252.0,0.07955547]
[1764829909426,0.2042126,93253.0,93252.0,0.09190184]
[1764829909921,0.2042126,93253.0,93252.0,0.18382184]
[1764829912425,0.19349,93253.0,93252.0,0.24700454]
[1764829917227,0.19349,93253.0,93252.0,0.19454454]
[1764829919131,0.19349,93253.0,93252.0,0.27102206]
[1764829920223,0.19349,93253.0,93252.0,0.19454454]
[1764829920626,0.19349,93253.0,93252.0,0.24700454]
[1764829921230,0.19449,93253.0,93252.0,0.24000454]
[1764829921727,0.19349,93253.0,93252.0,0.24000454]
[1764829921926,0.19549,93253.0,93252.0,0.18754454]
[1764829923222,0.19549,93253.0,93252.0,0.24000454]
[1764829924733,0.19549,93253.0,93252.0,0.18754454]
[1764829925421,0.19549,93253.0,93252.0,0.23324454]
[1764829926437,0.19549,93253.0,93252.0,0.09290184]
[1764829926734,0.19549,93253.0,93252.0,0.17099184]
[1764829929133,0.19549,93253.0,93252.0,0.26663786]
[1764829930140,0.19549,93253.0,93252.0,0.17099184]
[1764829934650,0.032,93253.0,93252.0,0.17099184]
[1764829935149,0.19367,93253.0,93252.0,0.17099184]
[1764829944562,0.19367,93253.0,93252.0,0.18171454]
[1764829944864,0.19367,93253.0,93252.0,0.17099184]
[1764829946462,0.032,93253.0,93252.0,0.30099184]
[1764829946769,0.08426,93259.0,93258.0,0.173262]
[1764829946967,0.11426,93259.0,93258.0,0.223262]
[1764829947266,0.03,93259.0,93258.0,0.173262]
[1764829947671,0.03,93259.0,93258.0,0.533262]
[1764829947858,0.05,93269.0,93267.0,0.173261]
[1764829948055,0.03016078,93268.0,93267.0,0.173261]
[1764829948555,0.03016078,93268.0,93267.0,0.323261]
[1764829949870,0.03016078,93268.0,93267.0,0.173261]
[1764829950062,0.03016078,93268.0,93267.0,0.174261]
[1764829950254,0.03016078,93268.0,93267.0,0.315261]
[1764829950455,0.03016078,93268.0,93267.0,0.174261]
[1764829950661,0.03016078,93268.0,93267.0,0.176261]
[1764829951770,0.19183078,93268.0,93267.0,0.27101257]
[1764829951965,0.19183078,93268.0,93267.0,0.27201257]
[1764829952165,0.19183078,93268.0,93267.0,0.26129157]
[1764829952467,0.19183078,93268.0,93267.0,0.003]
[1764829953170,0.19283078,93268.0,93267.0,0.001]
[1764829953378,0.19283078,93268.0,93267.0,0.16354]
[1764829953870,0.19583078,93268.0,93267.0,0.16354]
[1764829954573,0.19583078,93268.0,93267.0,0.16254]
[1764829954769,0.19183078,93268.0,93267.0,0.16254]
[1764829954976,0.19383078,93268.0,93267.0,0.16254]
[1764829956270,0.07076,93273.0,93272.0,0.15828]
[1764829956477,6e-07,93273.0,93272.0,0.5590004]
[1764829956674,0.01,93273.0,93272.0,1.10177947]
[1764829956976,0.01,93273.0,93272.0,1.29866675]
[1764829957177,0.01,93273.0,93272.0,1.29833455]
[1764829957377,0.01,93273.0,93272.0,1.29933455]
[1764829957577,0.01,93273.0,93272.0,1.34387362]
[1764829957876,0.01,93273.0,93272.0,1.30033455]
[1764829958076,0.01,93273.0,93272.0,1.34591246]
[1764829958276,0.01,93273.0,93272.0,1.34491246]
[1764829958480,0.01,93273.0,93272.0,1.21203679]
[1764829958876,0.01,93273.0,93272.0,1.16645888]
[1764829959081,0.01,93273.0,93272.0,1.21108027]
[1764829960083,0.01,93273.0,93272.0,1.2519208]
[1764829961077,0.01,93273.0,93272.0,1.29768979]
[1764829961681,0.01,93273.0,93272.0,0.79944979]
[1764829961879,0.16345,93273.0,93272.0,0.30223131]
[1764829962076,0.16345,93273.0,93272.0,0.21444091]
[1764829962585,0.16345,93273.0,93272.0,0.24364192]
[1764829962876,0.16345,93273.0,93272.0,0.15818]
[1764829963278,0.16345,93273.0,93272.0,0.002]
[1764829964477,0.16345,93273.0,93272.0,0.001]
[1764829964880,0.16345,93273.0,93271.0,0.076424]
[1764829964881,0.1641704,93272.0,93271.0,0.076424]
[1764829965080,0.1941704,93272.0,93271.0,0.076424]
[1764829965576,0.1941704,93272.0,93270.0,0.076424]
[1764829965774,0.1941704,93272.0,93252.0,0.05533184]
[1764829965775,0.164171,93267.0,93266.0,0.076424]
[1764829965982,0.15345,93265.0,93264.0,0.076424]
[1764829966278,0.0107218,93260.0,93259.0,0.076424]
[1764829966489,0.1941718,93260.0,93259.0,0.076424]
[1764829966671,0.15345,93259.0,93258.0,0.076424]
[1764829966875,0.18345,93259.0,93258.0,0.076424]
[1764829968678,0.18345,93259.0,93258.0,0.228074]
[1764829968884,0.18345,93259.0,93258.0,0.15165]
[1764829969086,0.03,93259.0,93258.0,0.15165]
[1764829969486,0.1087,93259.0,93258.0,0.15165]
[1764829969679,0.1097,93259.0,93258.0,0.15165]
[1764829969878,0.18445,93259.0,93258.0,0.15165]
[1764829970079,0.18445,93259.0,93258.0,0.15265]
[1764829970677,0.18445,93259.0,93258.0,0.15165]
[1764829970986,0.18345,93259.0,93258.0,0.15365]
[1764829974485,0.1941719,93259.0,93258.0,0.15365]
[1764829974676,0.18345,93259.0,93258.0,0.15365]
[1764829976283,0.18345,93259.0,93258.0,0.15265]
[1764829976489,0.18345,93259.0,93258.0,0.15365]
[1764829978683,0.18345,93259.0,93258.0,0.002]
[1764829979190,0.18345,93259.0,93258.0,0.07868]
[1764829979785,0.18345,93259.0,93258.0,0.07768]
[1764829979985,0.18345,93259.0,93258.0,0.07868]
[1764829980186,0.18345,93259.0,93258.0,0.07768]
[1764829980381,0.1087,93259.0,93258.0,0.163372]
[1764829980580,0.03,93259.0,93258.0,0.163372]
[1764829980787,0.03,93259.0,93258.0,0.661572]
[1764829980978,0.1087,93259.0,93258.0,0.661572]
[1764829981292,0.03,93259.0,93258.0,0.661572]
[1764829981490,0.03,93259.0,93258.0,0.704872]
[1764829981688,0.1087,93259.0,93258.0,0.704872]
[1764829981884,0.18345,93259.0,93258.0,0.660572]
[1764829982298,0.18345,93259.0,93258.0,0.663572]
[1764829982486,0.18345,93259.0,93258.0,0.664572]
[1764829982797,0.18345,93259.0,93258.0,0.663572]
[1764829983096,0.18345,93259.0,93258.0,0.662572]
[1764829983297,0.18345,93259.0,93258.0,0.663572]
[1764829983597,0.18345,93259.0,93258.0,0.662572]
[1764829986497,0.18345,93259.0,93258.0,0.189652]
[1764829986498,0.03,93259.0,93258.0,0.189652]
[1764829986698,0.03,93259.0,93258.0,0.91336126]
[1764829987298,0.03,93259.0,93258.0,0.817852]
[1764829988194,0.10631,93259.0,93258.0,0.189652]
[1764829988395,0.10631,93259.0,93258.0,0.339652]
[1764829988587,0.10631,93259.0,93258.0,0.837852]
[1764829989196,0.03,93259.0,93258.0,0.837852]
[1764829990598,0.03,93259.0,93258.0,0.339652]
[1764829990798,0.03,93259.0,93258.0,0.837852]
[1764829993797,0.00278445,93259.0,93258.0,1.057852]
[1764829998601,0.07631,93269.0,93268.0,0.15286]
[1764829998806,0.15104,93276.0,93275.0,0.15286]
[1764829998995,0.18104,93276.0,93275.0,0.6617401]
[1764830000103,0.18104,93276.0,93275.0,0.75756469]
[1764830000303,0.18104,93276.0,93275.0,0.6617401]
[1764830000904,0.18104,93276.0,93275.0,0.75756469]
[1764830001210,0.18304,93276.0,93275.0,0.75756469]
[1764830001503,0.18304,93276.0,93275.0,0.6617401]
[1764830002004,0.18104,93276.0,93275.0,0.6617401]
[1764830002206,0.18304,93276.0,93275.0,0.6617401]
[1764830002607,0.18104,93276.0,93275.0,0.6617401]
[1764830002809,0.18104,93276.0,93275.0,0.6627401]
[1764830003507,0.18104,93276.0,93275.0,0.6637401]
[1764830003805,0.10631,93276.0,93275.0,0.6637401]
[1764830004005,0.03,93276.0,93275.0,0.6637401]
[1764830004203,0.03,93276.0,93275.0,0.40107345]
[1764830004508,0.10631,93276.0,93275.0,0.93074345]
[1764830005007,0.18104,93276.0,93275.0,0.93074345]
[1764830006307,0.18104,93276.0,93275.0,0.89919345]
[1764830007915,0.03,93276.0,93275.0,1.19074345]
[1764830008106,0.00257958,93276.0,93275.0,0.69262345]
[1764830008308,0.00257958,93276.0,93275.0,1.19074345]
[1764830010014,0.00016047,93282.0,93281.0,0.15286]
[1764830010206,0.05,93292.0,93291.0,0.20880796]
[1764830010406,0.19615,93305.0,93304.0,0.1635767]
[1764830010613,0.22615,93305.0,93304.0,0.6616567]
[1764830010909,0.22615,93305.0,93300.0,0.00999999]
[1764830010910,0.15104,93301.0,93300.0,0.16285999]
[1764830011104,0.18104,93301.0,93300.0,0.1635772]
[1764830011299,0.18104,93301.0,93300.0,0.5323472]
[1764830011504,0.18104,93301.0,93300.0,0.1635772]
[1764830011711,0.18104,93301.0,93300.0,0.4913772]
[1764830012212,0.19004,93301.0,93300.0,0.4913772]
[1764830012414,0.19004,93301.0,93300.0,0.4187072]
[1764830012613,0.19004,93301.0,93300.0,0.4913772]
[1764830012806,0.19004,93301.0,93300.0,0.1635772]
[1764830012807,0.19204,93301.0,93300.0,0.1635772]
[1764830013098,0.15104,93296.0,93293.0,0.09554509]
[1764830013303,0.15104,93292.0,93291.0,0.00016078]
[1764830013506,0.18104,93292.0,93291.0,0.00016078]
[1764830014703,0.18104,93292.0,93291.0,0.01087898]
[1764830014911,0.18404,93292.0,93291.0,0.00016078]
[1764830018916,0.18404,93292.0,93291.0,0.14924078]
[1764830019111,0.18404,93292.0,93291.0,0.07582078]
[1764830019315,0.18404,93292.0,93291.0,0.00016078]
[1764830019716,0.18404,93292.0,93291.0,0.14924078]
[1764830026915,0.18404,93292.0,93291.0,0.00016078]
[1764830029114,0.18404,93292.0,93291.0,0.14356078]
[1764830029825,0.18404,93292.0,93291.0,0.23910587]
[1764830031422,0.18404,93292.0,93291.0,0.14356078]
[1764830032528,0.033,93292.0,93291.0,0.28356078]
[1764830033136,0.17472,93292.0,93291.0,0.14356078]
[1764830033328,0.17472,93292.0,93291.0,0.29356078]
[1764830033523,0.17472,93292.0,93291.0,0.14356078]
[1764830041637,0.17472,93292.0,93291.0,0.27356078]
[1764830041841,0.10325,93292.0,93291.0,0.27356078]
[1764830042041,0.17472,93292.0,93291.0,0.14356078]
[1764830044444,0.17472,93292.0,93291.0,0.00016078]
[1764830044938,0.17472,93292.0,93291.0,0.13734078]
[1764830045145,0.033,93292.0,93291.0,0.26734078]
[1764830045442,0.033,93292.0,93291.0,0.53734078]
[1764830046243,0.00320694,93292.0,93291.0,0.53734078]
[1764830052258,0.00320694,93292.0,93291.0,0.64453168]
[1764830052457,0.003,93292.0,93291.0,0.64453168]
[1764830052855,0.033,93292.0,93291.0,0.64453168]
[1764830053158,0.003,93292.0,93291.0,1.14245168]
[1764830053760,0.003,93292.0,93291.0,1.14345168]
[1764830054657,0.18191,93312.0,93311.0,0.06915]
[1764830054859,0.21191,93312.0,93311.0,0.13718]
[1764830055659,0.21291,93312.0,93311.0,0.13718]
[1764830056565,0.21691,93312.0,93311.0,0.13718]
[1764830059070,0.21691,93312.0,93311.0,0.23286881]
[1764830059471,0.21691,93312.0,93311.0,0.13718]
[1764830060169,0.17907,93312.0,93311.0,0.26718]
[1764830060374,0.17907,93312.0,93311.0,0.70286881]
[1764830060674,0.17907,93312.0,93311.0,0.60718]
[1764830064466,0.11012,93312.0,93311.0,0.60718]
[1764830064663,0.035,93312.0,93311.0,0.60718]
[1764830065774,0.11012,93312.0,93311.0,0.60718]
[1764830066873,0.035,93312.0,93311.0,0.71434792]
[1764830067670,0.11012,93312.0,93311.0,0.71434792]
[1764830067875,0.035,93312.0,93311.0,0.71434792]
[1764830069768,0.035,93312.0,93311.0,1.21218792]
[1764830070068,0.035,93312.0,93311.0,1.25809044]
[1764830071380,0.17907,93312.0,93311.0,0.61025044]
[1764830071685,0.17907,93312.0,93311.0,1.10805044]
[1764830071864,0.17907,93312.0,93311.0,0.61025044]
[1764830072072,0.17907,93312.0,93311.0,1.10805044]
[1764830073468,0.17907,93312.0,93311.0,0.78805044]
[1764830073669,0.17907,93312.0,93311.0,0.93805044]
[1764830076378,0.17907,93312.0,93311.0,0.78805044]
[1764830076580,0.17907,93312.0,93311.0,1.07805044]
[1764830077678,0.035,93312.0,93311.0,1.07805044]
[1764830077980,0.035,93312.0,93311.0,0.58025044]
[1764830078180,0.035,93312.0,93311.0,1.07801044]
[1764830079977,0.09505,93312.0,93311.0,1.07801044]
[1764830080281,0.035,93312.0,93311.0,1.07801044]
[1764830081480,0.06902,93316.0,93315.0,0.1526055]
[1764830081784,0.09266268,93316.0,93315.0,0.5926055]
[1764830081979,0.03,93316.0,93315.0,0.88499707]
[1764830082185,0.00026788,93326.0,93325.0,0.1509343]
[1764830082478,0.00026788,93326.0,93325.0,1.14333474]
[1764830082479,0.00010589,93326.0,93325.0,1.14333474]
[1764830082783,0.04010589,93326.0,93325.0,2.75049807]
[1764830082980,0.00010589,93326.0,93325.0,2.75049807]
[1764830083179,0.0535287,93401.0,93325.0,2.75049807]
[1764830083180,0.03436,93370.0,93365.0,0.0538]
[1764830083389,0.15003776,93366.0,93365.0,0.17581922]
[1764830083578,0.15003776,93366.0,93365.0,0.04581226]
[1764830083885,0.15003776,93366.0,93365.0,0.36733226]
[1764830084183,0.15003776,93366.0,93365.0,0.74301484]
[1764830084384,0.15003776,93366.0,93365.0,0.24525484]
[1764830084585,0.15003776,93366.0,93365.0,0.74301484]
[1764830084789,0.15003776,93366.0,93365.0,0.1381489]
[1764830084990,0.15003776,93366.0,93365.0,0.6359089]
[1764830085284,0.15103776,93366.0,93365.0,0.65018149]
[1764830085483,0.15103776,93366.0,93365.0,0.09866149]
[1764830085671,0.11977,93363.0,93362.0,0.07604761]
[1764830085873,0.11977,93363.0,93360.0,0.00999999]
[1764830085874,0.1304802,93361.0,93359.0,0.0257783]
[1764830086182,0.1304802,93361.0,93344.0,0.0107121]
[1764830086183,0.11977,93339.0,93338.0,0.09536056]
[1764830086486,0.14977,93339.0,93338.0,0.61865]
[1764830088080,0.14977,93339.0,93338.0,0.63300509]
[1764830088287,0.14977,93339.0,93338.0,0.57506509]
[1764830088582,0.14977,93339.0,93338.0,0.51307509]
[1764830088879,0.14977,93339.0,93338.0,0.51907509]
[1764830089281,0.14977,93339.0,93338.0,0.02035509]
[1764830089481,0.14977,93339.0,93338.0,0.60499322]
[1764830089882,0.14977,93339.0,93338.0,0.10627322]
[1764830090076,0.14977,93339.0,93338.0,0.005]
[1764830091086,0.14977,93339.0,93338.0,0.09140402]
[1764830091390,0.14977,93339.0,93338.0,0.1366028]
[1764830091694,0.14977,93339.0,93338.0,0.0776628]
[1764830091993,0.14977,93339.0,93338.0,0.22337527]
[1764830092189,0.14977,93339.0,93338.0,0.16443527]
[1764830092583,0.14977,93339.0,93338.0,0.22337527]
[1764830093087,0.14977,93339.0,93338.0,0.23783352]
[1764830094081,0.14977,93339.0,93338.0,0.42139352]
[1764830094285,0.03,93339.0,93338.0,0.67139352]
[1764830094489,0.03,93339.0,93338.0,0.48139352]
[1764830094698,0.03,93339.0,93338.0,0.27139352]
[1764830094988,0.03,93339.0,93338.0,0.44139352]
[1764830095180,0.00016026,93348.0,93347.0,0.1316018]
[1764830095386,0.00016026,93348.0,93347.0,0.4416018]
[1764830095694,0.00016026,93348.0,93347.0,1.04645872]
[1764830095878,0.00016026,93348.0,93347.0,1.14181928]
[1764830096386,0.03016026,93348.0,93347.0,0.64582153]
[1764830096687,0.03016026,93348.0,93347.0,1.04845872]
[1764830097188,0.00016026,93348.0,93347.0,1.04845872]
[1764830097598,0.03016026,93348.0,93347.0,1.04845872]
[1764830097785,0.00016026,93348.0,93347.0,1.04845872]
[1764830098186,0.00016026,93348.0,93347.0,1.05145872]
[1764830099587,0.03016026,93348.0,93347.0,1.05145872]
[1764830100200,0.09021026,93348.0,93347.0,1.05145872]
[1764830100397,0.03016026,93348.0,93347.0,1.05145872]
[1764830100697,0.00016026,93348.0,93347.0,1.05145872]
[1764830100897,0.00016026,93348.0,93347.0,0.55373872]
[1764830101194,0.00016026,93348.0,93347.0,1.05141872]
[1764830101394,0.03016026,93348.0,93347.0,1.05141872]
[1764830101599,0.00016026,93348.0,93347.0,1.05141872]
[1764830101789,0.00016026,93348.0,93347.0,0.55373872]
[1764830102096,0.12993026,93348.0,93347.0,0.005]
[1764830102396,0.12993026,93348.0,93347.0,0.5134718]
[1764830102591,0.12993026,93348.0,93347.0,0.0157118]
[1764830103092,0.12993026,93348.0,93347.0,0.5134718]
[1764830103587,0.12993026,93348.0,93347.0,0.6449818]
[1764830103893,0.01016026,93348.0,93347.0,0.4882218]
[1764830104092,0.07208026,93348.0,93347.0,0.13751]
[1764830104300,0.14022026,93348.0,93347.0,0.50284]
[1764830104495,0.01016026,93348.0,93347.0,0.62976]
[1764830104691,0.00016026,93348.0,93347.0,0.57904659]
[1764830104891,0.03016026,93348.0,93347.0,0.57804659]
[1764830105192,0.00016026,93348.0,93347.0,1.07588659]
[1764830106499,0.00016026,93348.0,93347.0,1.07600659]
[1764830111309,0.00026776,93366.0,93347.0,1.07600659]
[1764830111501,0.03026776,93366.0,93365.0,0.12792]
[1764830111697,0.03026776,93366.0,93365.0,0.96576]
[1764830112905,0.03026776,93366.0,93365.0,0.9764697]
[1764830113815,0.03126776,93366.0,93365.0,0.6364697]
[1764830114003,0.09318776,93366.0,93365.0,0.6364697]
[1764830114607,0.09318776,93366.0,93365.0,0.6364297]
[1764830115398,0.09318776,93366.0,93365.0,0.2686297]
[1764830115602,0.09318776,93366.0,93365.0,0.7664297]
[1764830116202,0.03126776,93366.0,93365.0,0.7664297]
[1764830116596,0.16132776,93366.0,93365.0,0.7664297]
[1764830116811,0.20154776,93366.0,93365.0,0.1386297]
[1764830117008,0.16132776,93366.0,93365.0,0.1386297]
[1764830117310,0.16132776,93366.0,93365.0,0.6364297]
[1764830118205,0.16132776,93366.0,93365.0,0.7764297]
[1764830118713,0.09318776,93366.0,93365.0,0.7764297]
[1764830119306,0.16132776,93366.0,93365.0,0.6364297]
[1764830119511,0.20154776,93366.0,93365.0,0.6364297]
[1764830119710,0.16132776,93366.0,93365.0,0.6364297]
[1764830120010,0.16132776,93366.0,93365.0,0.6363897]
[1764830121502,0.09917,93371.0,93365.0,0.6363897]
[1764830121503,0.09917,93371.0,93370.0,0.1386292]
[1764830121812,0.12917,93371.0,93370.0,0.4186292]
[1764830122001,0.25923,93371.0,93370.0,0.1386292]
[1764830122198,0.25923,93371.0,93370.0,0.12792]
[1764830122705,0.16006,93371.0,93370.0,0.63076]
[1764830123910,0.16006,93371.0,93370.0,0.13292]
[1764830124312,0.16006,93371.0,93370.0,0.63072]
[1764830125115,0.03,93371.0,93370.0,0.8749272]
[1764830125309,0.03,93371.0,93370.0,1.1949272]
[1764830127014,0.03,93371.0,93370.0,0.6971272]
[1764830127216,0.03,93371.0,93370.0,0.8042274]
[1764830127419,0.03,93371.0,93370.0,1.3019874]
[1764830129113,0.09261,93375.0,93374.0,0.12792]
[1764830129416,0.12261,93375.0,93374.0,0.44792]
[1764830129619,0.03,93375.0,93374.0,0.5550202]
[1764830130204,0.03,93375.0,93374.0,0.5580202]
[1764830130812,0.06192,93385.0,93384.0,0.12792]
[1764830131011,0.03,93385.0,93384.0,0.6363476]
[1764830131410,0.09192,93385.0,93384.0,0.6363476]
[1764830131616,0.09192,93385.0,93384.0,0.7563476]
[1764830131815,0.09192,93385.0,93384.0,0.6363476]
[1764830132018,0.16006,93385.0,93384.0,0.6363476]
[1764830132417,0.16006,93385.0,93384.0,0.6363076]
[1764830136128,0.16006,93385.0,93384.0,0.1386276]
[1764830136323,0.16006,93385.0,93384.0,0.6362276]
[1764830136926,0.16006,93385.0,93384.0,0.6723676]
[1764830137422,0.16006,93385.0,93384.0,0.6362276]
[1764830137624,0.09192,93385.0,93384.0,0.6723676]
[1764830137822,0.15169,93385.0,93384.0,0.6362276]
[1764830138023,0.15169,93385.0,93384.0,0.6361876]
[1764830139126,0.15169,93385.0,93384.0,0.1386276]
[1764830139324,0.15169,93385.0,93384.0,0.6361876]
[1764830140526,0.15169,93385.0,93384.0,0.1386276]
[1764830140725,0.15169,93385.0,93384.0,0.6361476]
[1764830141811,0.09192,93385.0,93384.0,0.6677376]
[1764830142423,0.15137,93385.0,93384.0,0.6677376]
[1764830143321,0.15137,93385.0,93384.0,0.6361476]
[1764830143928,0.15137,93385.0,93384.0,0.6361076]
[1764830145329,0.15137,93385.0,93384.0,0.23374815]
[1764830145528,0.15137,93385.0,93384.0,0.73118815]
[1764830148023,0.15137,93385.0,93384.0,0.23374815]
[1764830148221,0.15137,93385.0,93384.0,0.73118815]
[1764830149329,0.15137,93385.0,93384.0,0.6360676]
[1764830150628,0.11839,93377.0,93376.0,0.13350478]
[1764830150833,0.14839,93377.0,93376.0,0.49744]
[1764830151020,0.11839,93376.0,93375.0,0.00016066]
[1764830151224,0.11839,93376.0,93375.0,0.62113066]
[1764830151225,0.14839,93376.0,93375.0,0.62113066]
[1764830151425,0.03,93376.0,93375.0,0.93113066]
[1764830151622,0.00026765,93406.0,93388.0,0.12353]
[1764830151623,0.20564,93389.0,93388.0,0.12353]
[1764830151821,0.23564,93389.0,93388.0,0.62101]
[1764830152124,0.23564,93389.0,93380.0,0.00999999]
[1764830152125,0.11839,93376.0,93375.0,0.17807105]
[1764830152324,0.1012695,93376.0,93375.0,0.63403926]
[1764830152723,0.1012695,93376.0,93375.0,0.17931407]
[1764830153132,0.1012695,93376.0,93375.0,0.67695407]
[1764830153833,0.1012695,93376.0,93375.0,0.17931407]
[1764830154021,0.1012695,93376.0,93375.0,0.67695407]
[1764830154225,0.1012695,93376.0,93375.0,0.81015531]
[1764830154531,0.1012695,93376.0,93375.0,0.30180671]
[1764830154737,0.1012695,93376.0,93375.0,0.16860547]
[1764830155131,0.1012695,93376.0,93375.0,0.17560547]
[1764830156737,0.1012695,93376.0,93375.0,0.11012547]
[1764830156938,0.1012695,93376.0,93375.0,0.27078524]
[1764830157139,0.1012695,93376.0,93375.0,0.26378524]
[1764830157328,0.1012695,93376.0,93375.0,0.26878524]
[1764830157527,0.1012695,93376.0,93375.0,0.26678524]
[1764830158736,0.1012695,93376.0,93375.0,0.17160547]
[1764830163040,0.1012695,93376.0,93375.0,0.20956547]
[1764830164236,0.1012695,93376.0,93375.0,0.17160547]
[1764830164627,0.1012695,93376.0,93375.0,0.00516066]
[1764830164838,0.1012695,93376.0,93364.0,0.0107098]
[1764830164839,0.1337397,93365.0,93364.0,0.09463765]
[1764830165029,0.0107101,93362.0,93354.0,0.1292209]
[1764830165345,0.12303,93355.0,93354.0,0.1292209]
[1764830165539,0.15303,93355.0,93354.0,0.1292209]
[1764830166535,0.15303,93355.0,93354.0,0.1322209]
[1764830166935,0.15303,93355.0,93354.0,0.1332209]
[1764830167536,0.15303,93355.0,93354.0,0.0739409]
[1764830167744,0.15303,93355.0,93354.0,0.1332209]
[1764830168043,0.15303,93355.0,93354.0,0.0147109]
[1764830168228,0.15303,93355.0,93354.0,0.09073139]
[1764830168428,0.15303,93355.0,93354.0,0.14996139]
[1764830168934,0.15303,93355.0,93354.0,0.0739409]
[1764830169632,0.15303,93355.0,93354.0,0.1701309]
[1764830169844,0.15303,93355.0,93354.0,0.1332209]
[1764830170538,0.14803,93355.0,93354.0,0.1332209]
[1764830172835,0.17718,93355.0,93354.0,0.12251]
[1764830173033,0.1878909,93355.0,93354.0,0.12251]
[1764830173342,0.17718,93355.0,93354.0,0.12251]
[1764830174439,0.17718,93355.0,93354.0,0.004]
[1764830174845,0.17718,93355.0,93345.0,0.00016066]
[1764830174846,0.1337419,93346.0,93345.0,0.00016066]
[1764830175041,0.1337427,93339.0,93338.0,0.01445825]
[1764830175343,0.12303,93331.0,93330.0,0.11851]
[1764830175544,0.15303,93331.0,93330.0,0.15542]
[1764830176447,0.15303,93331.0,93330.0,0.16872353]
[1764830176849,0.15303,93331.0,93330.0,0.17672353]
[1764830177039,0.15303,93331.0,93330.0,0.17872353]
[1764830177240,0.15303,93331.0,93330.0,0.14181353]
[1764830177632,0.15303,93331.0,93330.0,0.17872353]
[1764830177940,0.15303,93331.0,93330.0,0.14181353]
[1764830178446,0.15303,93331.0,93330.0,0.13981353]
[1764830178846,0.15403,93331.0,93330.0,0.16872353]
[1764830179342,0.15403,93331.0,93330.0,0.13181353]
[1764830181242,0.15403,93331.0,93330.0,0.07253353]
[1764830181443,0.031,93331.0,93330.0,0.16872353]
[1764830181747,0.031,93331.0,93330.0,0.15542]
[1764830182542,0.03,93331.0,93330.0,0.15642]
[1764830182842,0.03,93331.0,93330.0,0.17109217]
[1764830186949,0.08832,93331.0,93330.0,0.17109217]
[1764830187250,0.15303,93331.0,93330.0,0.07490217]
[1764830187456,0.15303,93331.0,93330.0,0.13418217]
[1764830188344,0.15303,93331.0,93330.0,0.13318217]
[1764830188545,0.15303,93331.0,93330.0,0.13418217]
[1764830188940,0.15303,93331.0,93330.0,0.13318217]
[1764830189652,0.08832,93331.0,93330.0,0.17009217]
[1764830189851,0.15303,93331.0,93330.0,0.17009217]
[1764830190858,0.03,93331.0,93330.0,0.17009217]
[1764830192757,0.03,93331.0,93330.0,0.24611266]
[1764830192959,0.08555066,93340.0,93339.0,0.11851]
[1764830193158,0.11555066,93340.0,93339.0,0.11851]
[1764830193358,0.03016066,93340.0,93339.0,0.11851]
[1764830193964,0.03016066,93340.0,93339.0,0.1292227]
[1764830194256,0.03216066,93340.0,93339.0,0.1292227]
[1764830194748,0.09048066,93340.0,93339.0,0.1292227]
[1764830194947,0.09756066,93340.0,93339.0,0.1292227]
[1764830195143,0.15172066,93340.0,93339.0,0.1292227]
[1764830195358,0.15172066,93340.0,93339.0,0.6269027]
[1764830195755,0.03016066,93340.0,93339.0,0.6269027]
[1764830196058,0.09556066,93340.0,93339.0,0.6269027]
[1764830196760,0.09556066,93340.0,93339.0,0.71321162]
[1764830198459,0.03016066,93340.0,93339.0,0.71321162]
[1764830198958,0.03016066,93340.0,93339.0,0.21553162]
[1764830199160,0.03016066,93340.0,93339.0,0.71321162]
[1764830199357,0.09556066,93340.0,93339.0,0.71321162]
[1764830200555,0.03016066,93340.0,93339.0,0.71321162]
[1764830202065,0.14968066,93340.0,93339.0,0.71321162]
[1764830202258,0.08959066,93340.0,93339.0,0.71321162]